[Event "Titled Tuesday Blitz October 5 2021"]
[White "Bilan, Danila"]
[Black "Cunha, Lucas Aguiar"]
[WhiteFideId "24161918"]
[BlackFideId "2125404"]
[WhiteElo "2164"]
[BlackElo "2361"]
[Result "0-1"]
[Round "09"]
[TimeControl "180+1"]
[Date "2021.10.05"]
[WhiteClock "0:00:04"]
[BlackClock "0:00:47"]

1. d4 {[%clk 0:03:00]}  Nf6 {[%clk 0:02:59]} 2. Nf3 {[%clk 0:02:58]}  c5 {[%clk 0:02:59]} 3. e3 {[%clk 0:02:58]}  g6 {[%clk 0:02:53]} 4. c4 {[%clk 0:02:53]}  Bg7 {[%clk 0:02:51]} 5. Nc3 {[%clk 0:02:49]}  O-O {[%clk 0:02:50]} 6. Be2 {[%clk 0:02:47]}  cxd4 {[%clk 0:02:46]} 7. Nxd4 {[%clk 0:02:39]}  Nc6 {[%clk 0:02:41]} 8. Nxc6 {[%clk 0:02:30]}  bxc6 {[%clk 0:02:40]} 9. O-O {[%clk 0:02:27]}  Rb8 {[%clk 0:02:36]} 10. Rb1 {[%clk 0:02:21]}  d6 {[%clk 0:02:30]} 11. b3 {[%clk 0:02:12]}  Bd7 {[%clk 0:02:17]} 12. Bb2 {[%clk 0:02:07]}  Qa5 {[%clk 0:02:17]} 13. Bf3 {[%clk 0:01:17]}  Rfc8 {[%clk 0:02:16]} 14. Qd2 {[%clk 0:01:11]}  Bf5 {[%clk 0:02:13]} 15. Ra1 {[%clk 0:01:09]}  Nd7 {[%clk 0:02:07]} 16. Rfd1 {[%clk 0:01:06]}  Ne5 {[%clk 0:02:04]} 17. Be2 {[%clk 0:01:04]}  Qd8 {[%clk 0:02:01]} 18. h3 {[%clk 0:00:58]}  a5 {[%clk 0:01:59]} 19. Na4 {[%clk 0:00:52]}  c5 {[%clk 0:01:36]} 20. f4 {[%clk 0:00:47]}  Nc6 {[%clk 0:01:34]} 21. Bxg7 {[%clk 0:00:46]}  Kxg7 {[%clk 0:01:33]} 22. Bf3 {[%clk 0:00:42]}  Bd7 {[%clk 0:01:30]} 23. Nc3 {[%clk 0:00:38]}  Nb4 {[%clk 0:01:28]} 24. e4 {[%clk 0:00:26]}  Bc6 {[%clk 0:01:22]} 25. Nd5 {[%clk 0:00:17]}  Bxd5 {[%clk 0:01:17]} 26. exd5 {[%clk 0:00:18]}  a4 {[%clk 0:01:14]} 27. Re1 {[%clk 0:00:14]}  axb3 {[%clk 0:00:53]} 28. axb3 {[%clk 0:00:15]}  Ra8 {[%clk 0:00:54]} 29. Rxa8 {[%clk 0:00:14]}  Rxa8 {[%clk 0:00:55]} 30. f5 {[%clk 0:00:15]}  Ra2 {[%clk 0:00:52]} 31. Qc3+ {[%clk 0:00:06]}  Kg8 {[%clk 0:00:50]} 32. fxg6 {[%clk 0:00:04]}  hxg6 {[%clk 0:00:51]} 33. Qe3 {[%clk 0:00:04]}  Ra7 {[%clk 0:00:46]} 34. h4 {[%clk 0:00:02]}  Nc2 {[%clk 0:00:46]} 35. Qd2 {[%clk 0:00:01]}  Nxe1 {[%clk 0:00:46]} 36. Qxe1 {[%clk 0:00:02]}  Qa5 {[%clk 0:00:47]} 37. Qg3 {[%clk 0:00:03]}  Qa1+ {[%clk 0:00:46]} 38. Kh2 {[%clk 0:00:03]}  Qe5 {[%clk 0:00:46]} 39. Qxe5 {[%clk 0:00:04]}  dxe5 {[%clk 0:00:47]} 40. Bd1 {[%clk 0:00:04]}  Ra1 {[%clk 0:00:46]} 41. Bc2 {[%clk 0:00:04]}  Rc1 {[%clk 0:00:46]} 42. Be4 {[%clk 0:00:04]}  Rc3 {[%clk 0:00:47]} 43. Bc2 {[%clk 0:00:04]}  Rxc2 {[%clk 0:00:47]} 0-1


[Site "https://www.chess.com"]

[Event "Titled Tuesday Blitz October 5 2021"]
[White "Csonka, Balazs"]
[Black "Vlachos, Anatole"]
[WhiteFideId "742910"]
[BlackFideId "26093189"]
[WhiteElo "2404"]
[BlackElo "2350"]
[Result "1-0"]
[Round "09"]
[TimeControl "180+1"]
[Date "2021.10.05"]
[WhiteClock "0:00:05"]
[BlackClock "0:00:34"]

1. e4 {[%clk 0:03:00]}  d6 {[%clk 0:03:00]} 2. d4 {[%clk 0:03:00]}  c6 {[%clk 0:03:01]} 3. c4 {[%clk 0:02:57]}  e5 {[%clk 0:03:01]} 4. Nf3 {[%clk 0:02:56]}  Nd7 {[%clk 0:03:00]} 5. Nc3 {[%clk 0:02:56]}  g6 {[%clk 0:03:00]} 6. Be3 {[%clk 0:02:41]}  Bg7 {[%clk 0:02:47]} 7. dxe5 {[%clk 0:02:39]}  dxe5 {[%clk 0:02:46]} 8. c5 {[%clk 0:02:39]}  Ngf6 {[%clk 0:02:28]} 9. Bc4 {[%clk 0:02:35]}  O-O {[%clk 0:02:25]} 10. h3 {[%clk 0:02:30]}  a5 {[%clk 0:02:23]} 11. Qc2 {[%clk 0:02:23]}  Qe7 {[%clk 0:02:20]} 12. Na4 {[%clk 0:02:22]}  Kh8 {[%clk 0:02:14]} 13. O-O-O {[%clk 0:01:52]}  Nh5 {[%clk 0:01:57]} 14. g3 {[%clk 0:01:18]}  f5 {[%clk 0:01:55]} 15. exf5 {[%clk 0:01:14]}  gxf5 {[%clk 0:01:56]} 16. g4 {[%clk 0:01:03]}  Nf4 {[%clk 0:01:44]} 17. gxf5 {[%clk 0:00:56]}  Nb8 {[%clk 0:01:42]} 18. Bxf4 {[%clk 0:00:50]}  exf4 {[%clk 0:01:39]} 19. Rhe1 {[%clk 0:00:46]}  Qf6 {[%clk 0:01:38]} 20. Be6 {[%clk 0:00:43]}  Na6 {[%clk 0:01:34]} 21. a3 {[%clk 0:00:35]}  Re8 {[%clk 0:01:17]} 22. Nb6 {[%clk 0:00:28]}  Bxe6 {[%clk 0:01:17]} 23. Nxa8 {[%clk 0:00:25]}  Rxa8 {[%clk 0:01:02]} 24. Rxe6 {[%clk 0:00:14]}  Qf7 {[%clk 0:01:02]} 25. Rde1 {[%clk 0:00:13]}  h6 {[%clk 0:00:58]} 26. Ne5 {[%clk 0:00:12]}  Qc7 {[%clk 0:00:50]} 27. f6 {[%clk 0:00:11]}  Bf8 {[%clk 0:00:47]} 28. Ng6+ {[%clk 0:00:10]}  Kg8 {[%clk 0:00:47]} 29. Rg1 {[%clk 0:00:09]}  Kf7 {[%clk 0:00:46]} 30. Qf5 {[%clk 0:00:08]}  Bxc5 {[%clk 0:00:36]} 31. Ne5+ {[%clk 0:00:09]}  Kf8 {[%clk 0:00:36]} 32. Qg6 {[%clk 0:00:07]}  Qf7 {[%clk 0:00:33]} 33. Qxh6+ {[%clk 0:00:06]}  Qg7 {[%clk 0:00:31]} 34. Ng6+ {[%clk 0:00:05]}  Kf7 {[%clk 0:00:32]} 35. Qxg7+ {[%clk 0:00:04]}  Kxe6 {[%clk 0:00:33]} 36. Nxf4+ {[%clk 0:00:05]}  Kf5 {[%clk 0:00:33]} 37. Qg6+ {[%clk 0:00:05]}  Ke5 {[%clk 0:00:33]} 38. Rg5+ {[%clk 0:00:05]}  Kxf4 {[%clk 0:00:34]} 39. Qf5# {[%clk 0:00:05]} 1-0


[Site "https://www.chess.com"]

[Event "Titled Tuesday Blitz October 5 2021"]
[White "Diakonova, Ekaterina"]
[Black "Pacheco Lugo, Alejandro Jose"]
[WhiteFideId "24172936"]
[BlackFideId "3903745"]
[WhiteElo "2069"]
[BlackElo "2125"]
[Result "1-0"]
[Round "09"]
[TimeControl "180+1"]
[Date "2021.10.05"]
[WhiteClock "0:01:38"]
[BlackClock "0:01:14"]

1. d4 {[%clk 0:03:00]}  Nf6 {[%clk 0:02:59]} 2. Bf4 {[%clk 0:03:01]}  d5 {[%clk 0:02:59]} 3. e3 {[%clk 0:03:00]}  c5 {[%clk 0:02:59]} 4. c3 {[%clk 0:02:57]}  Nc6 {[%clk 0:03:00]} 5. Nd2 {[%clk 0:02:56]}  e6 {[%clk 0:03:00]} 6. Ngf3 {[%clk 0:02:56]}  Bd6 {[%clk 0:02:59]} 7. Bg3 {[%clk 0:02:54]}  O-O {[%clk 0:02:59]} 8. Bd3 {[%clk 0:02:53]}  b6 {[%clk 0:02:59]} 9. O-O {[%clk 0:02:53]}  Bb7 {[%clk 0:02:59]} 10. Qc2 {[%clk 0:02:47]}  Rc8 {[%clk 0:02:55]} 11. Ne5 {[%clk 0:02:47]}  cxd4 {[%clk 0:02:49]} 12. Nxc6 {[%clk 0:02:44]}  Rxc6 {[%clk 0:02:36]} 13. exd4 {[%clk 0:02:44]}  a6 {[%clk 0:02:30]} 14. a4 {[%clk 0:02:43]}  Bxg3 {[%clk 0:02:26]} 15. hxg3 {[%clk 0:02:43]}  Rc7 {[%clk 0:02:13]} 16. Nf3 {[%clk 0:02:41]}  Ne4 {[%clk 0:02:12]} 17. Ne5 {[%clk 0:02:38]}  f6 {[%clk 0:02:11]} 18. Nf3 {[%clk 0:02:37]}  Qd6 {[%clk 0:02:10]} 19. Rfe1 {[%clk 0:02:28]}  f5 {[%clk 0:02:08]} 20. Ne5 {[%clk 0:02:27]}  Rfc8 {[%clk 0:02:08]} 21. Kh2 {[%clk 0:02:25]}  b5 {[%clk 0:01:58]} 22. axb5 {[%clk 0:02:23]}  axb5 {[%clk 0:01:59]} 23. Bxb5 {[%clk 0:02:21]}  Qb6 {[%clk 0:01:59]} 24. Bd3 {[%clk 0:02:17]}  Qxd4 {[%clk 0:01:59]} 25. cxd4 {[%clk 0:02:15]}  Rxc2 {[%clk 0:01:58]} 26. Bxc2 {[%clk 0:02:15]}  Rxc2 {[%clk 0:01:59]} 27. f3 {[%clk 0:02:15]}  Nd6 {[%clk 0:01:55]} 28. Rab1 {[%clk 0:02:09]}  h5 {[%clk 0:01:55]} 29. Nd7 {[%clk 0:02:07]}  Kf7 {[%clk 0:01:53]} 30. Nc5 {[%clk 0:02:07]}  Bc8 {[%clk 0:01:54]} 31. b4 {[%clk 0:02:06]}  Nb5 {[%clk 0:01:54]} 32. Ra1 {[%clk 0:02:04]}  Nxd4 {[%clk 0:01:51]} 33. Re3 {[%clk 0:02:04]}  e5 {[%clk 0:01:47]} 34. Ra8 {[%clk 0:02:01]}  f4 {[%clk 0:01:45]} 35. gxf4 {[%clk 0:01:58]}  exf4 {[%clk 0:01:44]} 36. Rd3 {[%clk 0:01:58]}  Ne2 {[%clk 0:01:36]} 37. Rxc8 {[%clk 0:01:57]}  Ng3 {[%clk 0:01:34]} 38. Rd1 {[%clk 0:01:54]}  Nf5 {[%clk 0:01:28]} 39. Rc7+ {[%clk 0:01:50]}  Kg6 {[%clk 0:01:24]} 40. Rc6+ {[%clk 0:01:49]}  Kh7 {[%clk 0:01:23]} 41. Rxd5 {[%clk 0:01:45]}  Ne3 {[%clk 0:01:18]} 42. Rxh5+ {[%clk 0:01:44]}  Kg8 {[%clk 0:01:19]} 43. Rg5 {[%clk 0:01:44]}  Rb2 {[%clk 0:01:20]} 44. Rc7 {[%clk 0:01:39]}  Rb1 {[%clk 0:01:14]} 45. Rgxg7+ {[%clk 0:01:37]}  Kh8 {[%clk 0:01:12]} 46. Rh7+ {[%clk 0:01:37]}  Kg8 {[%clk 0:01:13]} 47. Rcg7+ {[%clk 0:01:37]}  Kf8 {[%clk 0:01:14]} 48. Ne6+ {[%clk 0:01:37]}  Ke8 {[%clk 0:01:14]} 49. Re7# {[%clk 0:01:38]} 1-0


[Site "https://www.chess.com"]

[Event "Titled Tuesday Blitz October 5 2021"]
[White "Ekdyshman, Mikhail"]
[Black "Vlassov, Nikolai"]
[WhiteFideId "4149416"]
[BlackFideId "4103360"]
[WhiteElo "2256"]
[BlackElo "2407"]
[Result "0-1"]
[Round "09"]
[TimeControl "180+1"]
[Date "2021.10.05"]
[WhiteClock "0:00:13"]
[BlackClock "0:00:53"]

1. d4 {[%clk 0:02:59]}  Nf6 {[%clk 0:02:59]} 2. c4 {[%clk 0:02:57]}  Nc6 {[%clk 0:02:59]} 3. Nc3 {[%clk 0:02:54]}  e5 {[%clk 0:02:59]} 4. d5 {[%clk 0:02:54]}  Ne7 {[%clk 0:02:59]} 5. d6 {[%clk 0:02:52]}  Ng6 {[%clk 0:02:56]} 6. dxc7 {[%clk 0:02:52]}  Qxc7 {[%clk 0:02:57]} 7. e3 {[%clk 0:02:37]}  Bb4 {[%clk 0:02:56]} 8. Bd2 {[%clk 0:02:34]}  O-O {[%clk 0:02:56]} 9. Rc1 {[%clk 0:02:30]}  b6 {[%clk 0:02:45]} 10. Nd5 {[%clk 0:02:22]}  Nxd5 {[%clk 0:02:41]} 11. cxd5 {[%clk 0:02:16]}  Qd6 {[%clk 0:02:39]} 12. Nf3 {[%clk 0:01:49]}  Bb7 {[%clk 0:02:36]} 13. e4 {[%clk 0:01:47]}  f5 {[%clk 0:02:29]} 14. Bd3 {[%clk 0:01:11]}  Nf4 {[%clk 0:02:28]} 15. Bc4 {[%clk 0:01:00]}  Nxg2+ {[%clk 0:02:22]} 16. Kf1 {[%clk 0:00:59]}  fxe4 {[%clk 0:02:07]} 17. Bxb4 {[%clk 0:00:48]}  Qxb4 {[%clk 0:02:03]} 18. d6+ {[%clk 0:00:49]}  Kh8 {[%clk 0:01:59]} 19. Kxg2 {[%clk 0:00:36]}  exf3+ {[%clk 0:01:59]} 20. Kg3 {[%clk 0:00:34]}  b5 {[%clk 0:01:45]} 21. a3 {[%clk 0:00:30]}  Qxb2 {[%clk 0:01:43]} 22. Bd3 {[%clk 0:00:27]}  Qd4 {[%clk 0:01:33]} 23. h4 {[%clk 0:00:19]}  Qf4+ {[%clk 0:01:28]} 24. Kh3 {[%clk 0:00:19]}  e4 {[%clk 0:01:29]} 25. Bf1 {[%clk 0:00:18]}  Qf5+ {[%clk 0:01:21]} 26. Kh2 {[%clk 0:00:16]}  Bd5 {[%clk 0:01:21]} 27. Rc5 {[%clk 0:00:15]}  Qf4+ {[%clk 0:01:20]} 28. Kg1 {[%clk 0:00:15]}  Qg4+ {[%clk 0:01:10]} 29. Kh2 {[%clk 0:00:15]}  Qxh4+ {[%clk 0:01:11]} 30. Kg1 {[%clk 0:00:16]}  Qg4+ {[%clk 0:01:11]} 31. Kh2 {[%clk 0:00:15]}  Qf4+ {[%clk 0:00:58]} 32. Kg1 {[%clk 0:00:15]}  Qg5+ {[%clk 0:00:58]} 33. Kh2 {[%clk 0:00:15]}  Qh6+ {[%clk 0:00:57]} 34. Bh3 {[%clk 0:00:12]}  Be6 {[%clk 0:00:55]} 35. Kg3 {[%clk 0:00:13]}  Qf4# {[%clk 0:00:53]} 0-1


[Site "https://www.chess.com"]

[Event "Titled Tuesday Blitz October 5 2021"]
[White "Ertan, Can"]
[Black "Paltrinieri, Nicholas"]
[WhiteFideId "6306330"]
[BlackFideId "828262"]
[WhiteElo "2223"]
[BlackElo "2254"]
[Result "0-1"]
[Round "09"]
[TimeControl "180+1"]
[Date "2021.10.05"]
[WhiteClock "0:00:07"]
[BlackClock "0:00:13"]

1. e4 {[%clk 0:02:58]}  e6 {[%clk 0:02:41]} 2. d4 {[%clk 0:02:58]}  d5 {[%clk 0:02:41]} 3. Nc3 {[%clk 0:02:59]}  Bb4 {[%clk 0:02:41]} 4. exd5 {[%clk 0:02:55]}  exd5 {[%clk 0:02:42]} 5. Nf3 {[%clk 0:02:55]}  Nf6 {[%clk 0:02:42]} 6. Bd3 {[%clk 0:02:55]}  h6 {[%clk 0:02:41]} 7. O-O {[%clk 0:02:55]}  O-O {[%clk 0:02:42]} 8. Ne2 {[%clk 0:02:55]}  Re8 {[%clk 0:02:38]} 9. Ng3 {[%clk 0:02:55]}  Nc6 {[%clk 0:02:33]} 10. c3 {[%clk 0:02:55]}  Bf8 {[%clk 0:02:32]} 11. Re1 {[%clk 0:02:54]}  Rxe1+ {[%clk 0:02:29]} 12. Qxe1 {[%clk 0:02:54]}  Bg4 {[%clk 0:02:30]} 13. Ne5 {[%clk 0:02:44]}  Nxe5 {[%clk 0:02:30]} 14. dxe5 {[%clk 0:02:40]}  Nd7 {[%clk 0:02:29]} 15. h3 {[%clk 0:02:26]}  Be6 {[%clk 0:02:28]} 16. Nf5 {[%clk 0:02:19]}  Nc5 {[%clk 0:02:27]} 17. Bc2 {[%clk 0:02:17]}  Qd7 {[%clk 0:02:17]} 18. Nd4 {[%clk 0:02:14]}  f6 {[%clk 0:01:23]} 19. exf6 {[%clk 0:02:00]}  Re8 {[%clk 0:01:23]} 20. Qd1 {[%clk 0:01:36]}  gxf6 {[%clk 0:01:17]} 21. Qf3 {[%clk 0:01:12]}  Ne4 {[%clk 0:01:09]} 22. Bxe4 {[%clk 0:00:56]}  dxe4 {[%clk 0:01:10]} 23. Qxe4 {[%clk 0:00:56]}  Bf7 {[%clk 0:00:58]} 24. Qg4+ {[%clk 0:00:38]}  Qxg4 {[%clk 0:00:58]} 25. hxg4 {[%clk 0:00:39]}  Re1+ {[%clk 0:00:58]} 26. Kh2 {[%clk 0:00:39]}  Bd6+ {[%clk 0:00:58]} 27. g3 {[%clk 0:00:36]}  Bg6 {[%clk 0:00:58]} 28. Nf5 {[%clk 0:00:20]}  h5 {[%clk 0:00:32]} 29. Nxd6 {[%clk 0:00:20]}  cxd6 {[%clk 0:00:33]} 30. gxh5 {[%clk 0:00:20]}  Bxh5 {[%clk 0:00:32]} 31. Kg2 {[%clk 0:00:19]}  Bg6 {[%clk 0:00:25]} 32. b3 {[%clk 0:00:18]}  Be4+ {[%clk 0:00:25]} 33. Kh3 {[%clk 0:00:16]}  Rf1 {[%clk 0:00:21]} 34. c4 {[%clk 0:00:07]}  Kf7 {[%clk 0:00:20]} 35. Bb2 {[%clk 0:00:05]}  Rxf2 {[%clk 0:00:20]} 36. Bd4 {[%clk 0:00:06]}  Rd2 {[%clk 0:00:14]} 37. Bxa7 {[%clk 0:00:05]}  Kg6 {[%clk 0:00:13]} 38. g4 {[%clk 0:00:05]}  Rd3+ {[%clk 0:00:12]} 39. Kh4 {[%clk 0:00:05]}  Rd2 {[%clk 0:00:10]} 40. Kg3 {[%clk 0:00:03]}  Bc6 {[%clk 0:00:07]} 41. Be3 {[%clk 0:00:02]}  Re2 {[%clk 0:00:07]} 42. Kf4 {[%clk 0:00:02]}  Kf7 {[%clk 0:00:06]} 43. a4 {[%clk 0:00:01]}  Ke6 {[%clk 0:00:06]} 44. Rg1 {[%clk 0:00:02]}  Rb2 {[%clk 0:00:06]} 45. g5 {[%clk 0:00:01]}  fxg5+ {[%clk 0:00:06]} 46. Rxg5 {[%clk 0:00:02]}  Rxb3 {[%clk 0:00:07]} 47. a5 {[%clk 0:00:03]}  Rc3 {[%clk 0:00:06]} 48. Rg6+ {[%clk 0:00:03]}  Kd7 {[%clk 0:00:06]} 49. Rg7+ {[%clk 0:00:04]}  Ke8 {[%clk 0:00:07]} 50. c5 {[%clk 0:00:04]}  dxc5 {[%clk 0:00:06]} 51. Rg5 {[%clk 0:00:04]}  Rc4+ {[%clk 0:00:06]} 52. Kg3 {[%clk 0:00:05]}  Rc3 {[%clk 0:00:06]} 53. Kf2 {[%clk 0:00:05]}  Rc2+ {[%clk 0:00:07]} 54. Kg3 {[%clk 0:00:05]}  c4 {[%clk 0:00:08]} 55. Rc5 {[%clk 0:00:05]}  Kd7 {[%clk 0:00:08]} 56. Kf4 {[%clk 0:00:05]}  Kd6 {[%clk 0:00:09]} 57. Kg4 {[%clk 0:00:02]}  Rc3 {[%clk 0:00:10]} 58. Kf4 {[%clk 0:00:03]}  Rxe3 {[%clk 0:00:10]} 59. Rxc6+ {[%clk 0:00:03]}  Kxc6 {[%clk 0:00:10]} 60. Kxe3 {[%clk 0:00:04]}  Kb5 {[%clk 0:00:11]} 61. Kd4 {[%clk 0:00:05]}  Kb4 {[%clk 0:00:11]} 62. Kd5 {[%clk 0:00:04]}  c3 {[%clk 0:00:12]} 63. Kd6 {[%clk 0:00:05]}  c2 {[%clk 0:00:12]} 64. Kc7 {[%clk 0:00:06]}  c1=Q+ {[%clk 0:00:13]} 65. Kxb7 {[%clk 0:00:07]}  Kxa5 {[%clk 0:00:13]} 0-1


[Site "https://www.chess.com"]

[Event "Titled Tuesday Blitz October 5 2021"]
[White "Gaehwiler, Gabriel"]
[Black "Avramidou, Anastasia"]
[WhiteFideId "1314530"]
[BlackFideId "4239873"]
[WhiteElo "2320"]
[BlackElo "2183"]
[Result "1-0"]
[Round "09"]
[TimeControl "180+1"]
[Date "2021.10.05"]
[WhiteClock "0:00:11"]
[BlackClock "0:00:01"]

1. d4 {[%clk 0:03:00]}  Nf6 {[%clk 0:02:32]} 2. c4 {[%clk 0:02:58]}  e6 {[%clk 0:02:33]} 3. g3 {[%clk 0:02:58]}  c5 {[%clk 0:02:32]} 4. Nf3 {[%clk 0:02:55]}  cxd4 {[%clk 0:02:31]} 5. Nxd4 {[%clk 0:02:56]}  Qa5+ {[%clk 0:02:32]} 6. Nd2 {[%clk 0:02:45]}  Qb6 {[%clk 0:02:29]} 7. e3 {[%clk 0:02:43]}  Nc6 {[%clk 0:02:28]} 8. Nb5 {[%clk 0:02:37]}  a6 {[%clk 0:02:26]} 9. Nc3 {[%clk 0:02:37]}  Ne5 {[%clk 0:02:21]} 10. Qe2 {[%clk 0:02:30]}  Bb4 {[%clk 0:02:18]} 11. Bg2 {[%clk 0:02:28]}  Bxc3 {[%clk 0:02:13]} 12. bxc3 {[%clk 0:02:29]}  O-O {[%clk 0:02:13]} 13. O-O {[%clk 0:02:28]}  d6 {[%clk 0:02:11]} 14. Ba3 {[%clk 0:02:28]}  Rd8 {[%clk 0:02:10]} 15. Rfd1 {[%clk 0:02:23]}  Qc7 {[%clk 0:02:05]} 16. Rab1 {[%clk 0:02:21]}  Rb8 {[%clk 0:02:03]} 17. f4 {[%clk 0:02:18]}  Ned7 {[%clk 0:01:51]} 18. Nb3 {[%clk 0:02:14]}  Nf8 {[%clk 0:01:45]} 19. c5 {[%clk 0:02:11]}  d5 {[%clk 0:01:40]} 20. Nd4 {[%clk 0:02:06]}  Bd7 {[%clk 0:01:31]} 21. Rb6 {[%clk 0:02:05]}  Ba4 {[%clk 0:01:23]} 22. Rdb1 {[%clk 0:02:04]}  N8d7 {[%clk 0:01:24]} 23. R6b4 {[%clk 0:01:56]}  Nxc5 {[%clk 0:01:22]} 24. Rb6 {[%clk 0:01:43]}  Be8 {[%clk 0:01:18]} 25. Qe1 {[%clk 0:01:34]}  Na4 {[%clk 0:01:15]} 26. R6b3 {[%clk 0:01:34]}  b5 {[%clk 0:01:12]} 27. h3 {[%clk 0:01:32]}  Rbc8 {[%clk 0:01:12]} 28. Ne2 {[%clk 0:01:27]}  Ne4 {[%clk 0:01:11]} 29. Rc1 {[%clk 0:01:25]}  Nec5 {[%clk 0:01:08]} 30. Qd1 {[%clk 0:01:18]}  Nxb3 {[%clk 0:01:08]} 31. axb3 {[%clk 0:01:19]}  Nc5 {[%clk 0:01:07]} 32. Nd4 {[%clk 0:01:17]}  Ne4 {[%clk 0:01:06]} 33. Qe1 {[%clk 0:01:15]}  Qb6 {[%clk 0:01:04]} 34. Bb2 {[%clk 0:01:11]}  a5 {[%clk 0:00:57]} 35. Ra1 {[%clk 0:01:09]}  b4 {[%clk 0:00:56]} 36. c4 {[%clk 0:01:06]}  dxc4 {[%clk 0:00:56]} 37. Bxe4 {[%clk 0:01:02]}  c3 {[%clk 0:00:56]} 38. Bc1 {[%clk 0:01:02]}  a4 {[%clk 0:00:39]} 39. Bc2 {[%clk 0:00:58]}  Ra8 {[%clk 0:00:28]} 40. bxa4 {[%clk 0:00:53]}  Rxd4 {[%clk 0:00:27]} 41. exd4 {[%clk 0:00:48]}  b3 {[%clk 0:00:27]} 42. Qe4 {[%clk 0:00:17]}  bxc2 {[%clk 0:00:06]} 43. Qxa8 {[%clk 0:00:16]}  Qxd4+ {[%clk 0:00:05]} 44. Kg2 {[%clk 0:00:14]}  Qd7 {[%clk 0:00:01]} 45. Ra2 {[%clk 0:00:11]} 1-0


[Site "https://www.chess.com"]

[Event "Titled Tuesday Blitz October 5 2021"]
[White "Garcia Blanco, Omar"]
[Black "Karttunen, Mika"]
[WhiteFideId "2287153"]
[BlackFideId "502081"]
[WhiteElo "2291"]
[BlackElo "2343"]
[Result "1-0"]
[Round "09"]
[TimeControl "180+1"]
[Date "2021.10.05"]
[WhiteClock "0:00:47"]
[BlackClock "0:00:24"]

1. e4 {[%clk 0:03:00]}  c5 {[%clk 0:02:57]} 2. c3 {[%clk 0:02:47]}  d5 {[%clk 0:02:55]} 3. exd5 {[%clk 0:02:47]}  Qxd5 {[%clk 0:02:55]} 4. d4 {[%clk 0:02:41]}  Nc6 {[%clk 0:02:55]} 5. Nf3 {[%clk 0:02:35]}  Bg4 {[%clk 0:02:54]} 6. dxc5 {[%clk 0:02:30]}  Qxd1+ {[%clk 0:02:52]} 7. Kxd1 {[%clk 0:02:31]}  Bxf3+ {[%clk 0:02:51]} 8. gxf3 {[%clk 0:02:31]}  e5 {[%clk 0:02:31]} 9. b4 {[%clk 0:02:28]}  a5 {[%clk 0:02:30]} 10. b5 {[%clk 0:02:28]}  Nd8 {[%clk 0:02:27]} 11. c6 {[%clk 0:02:23]}  bxc6 {[%clk 0:02:23]} 12. a4 {[%clk 0:02:23]}  Nf6 {[%clk 0:02:14]} 13. Na3 {[%clk 0:02:12]}  Nd5 {[%clk 0:01:56]} 14. Kc2 {[%clk 0:02:11]}  Bc5 {[%clk 0:01:54]} 15. Nc4 {[%clk 0:02:07]}  O-O {[%clk 0:01:40]} 16. Nxe5 {[%clk 0:02:05]}  Bxf2 {[%clk 0:01:29]} 17. bxc6 {[%clk 0:01:55]}  Re8 {[%clk 0:01:24]} 18. f4 {[%clk 0:01:49]}  Ne6 {[%clk 0:01:16]} 19. Bc4 {[%clk 0:01:41]}  Nexf4 {[%clk 0:01:07]} 20. Bxf4 {[%clk 0:01:42]}  Nxf4 {[%clk 0:01:03]} 21. Bxf7+ {[%clk 0:01:42]}  Kf8 {[%clk 0:01:03]} 22. Bxe8 {[%clk 0:01:42]}  Rxe8 {[%clk 0:01:03]} 23. Rhf1 {[%clk 0:01:37]}  Rxe5 {[%clk 0:01:01]} 24. Rxf2 {[%clk 0:01:36]}  g5 {[%clk 0:01:01]} 25. h4 {[%clk 0:01:29]}  h6 {[%clk 0:01:01]} 26. hxg5 {[%clk 0:01:27]}  hxg5 {[%clk 0:01:01]} 27. Rg1 {[%clk 0:01:22]}  Ke7 {[%clk 0:00:55]} 28. Rb1 {[%clk 0:00:55]}  Kd6 {[%clk 0:00:43]} 29. Rb5 {[%clk 0:00:54]}  Re6 {[%clk 0:00:29]} 30. Rxg5 {[%clk 0:00:50]}  Nh3 {[%clk 0:00:23]} 31. Rd2+ {[%clk 0:00:50]}  Kxc6 {[%clk 0:00:24]} 32. Rxa5 {[%clk 0:00:51]}  Kb6 {[%clk 0:00:23]} 33. Rb5+ {[%clk 0:00:50]}  Ka6 {[%clk 0:00:24]} 34. Rd8 {[%clk 0:00:48]}  Re7 {[%clk 0:00:23]} 35. Ra8+ {[%clk 0:00:47]}  Ra7 {[%clk 0:00:24]} 36. Rxa7+ {[%clk 0:00:47]} 1-0


[Site "https://www.chess.com"]

[Event "Titled Tuesday Blitz October 5 2021"]
[White "Gombocz, Ferenc Jr."]
[Black "Martin Carmona, Gaston Manuel"]
[WhiteFideId "775029"]
[BlackFideId "22284567"]
[WhiteElo "1913"]
[BlackElo "2161"]
[Result "0-1"]
[Round "09"]
[TimeControl "180+1"]
[Date "2021.10.05"]
[WhiteClock "0:00:51"]
[BlackClock "0:01:04"]

1. c4 {[%clk 0:03:00]}  Nf6 {[%clk 0:02:59]} 2. g3 {[%clk 0:03:00]}  g6 {[%clk 0:02:59]} 3. Bg2 {[%clk 0:02:59]}  Bg7 {[%clk 0:03:00]} 4. Nc3 {[%clk 0:02:59]}  O-O {[%clk 0:03:01]} 5. e4 {[%clk 0:02:59]}  d6 {[%clk 0:03:00]} 6. Nge2 {[%clk 0:02:59]}  c5 {[%clk 0:03:01]} 7. O-O {[%clk 0:02:59]}  Nc6 {[%clk 0:03:01]} 8. d3 {[%clk 0:02:58]}  Ne8 {[%clk 0:03:00]} 9. Be3 {[%clk 0:02:57]}  Nc7 {[%clk 0:03:00]} 10. d4 {[%clk 0:02:57]}  cxd4 {[%clk 0:02:59]} 11. Nxd4 {[%clk 0:02:57]}  Ne6 {[%clk 0:02:59]} 12. Nde2 {[%clk 0:02:56]}  Nc5 {[%clk 0:02:55]} 13. Rb1 {[%clk 0:02:47]}  Be6 {[%clk 0:02:50]} 14. Nd5 {[%clk 0:02:43]}  Qd7 {[%clk 0:02:46]} 15. b4 {[%clk 0:02:39]}  Nxe4 {[%clk 0:02:06]} 16. Bxe4 {[%clk 0:02:36]}  Bh3 {[%clk 0:02:07]} 17. Bg2 {[%clk 0:02:34]}  Bxg2 {[%clk 0:02:06]} 18. Kxg2 {[%clk 0:02:33]}  Ne5 {[%clk 0:02:07]} 19. c5 {[%clk 0:02:21]}  dxc5 {[%clk 0:02:04]} 20. bxc5 {[%clk 0:02:20]}  Rfd8 {[%clk 0:02:03]} 21. Ndc3 {[%clk 0:02:16]}  Qc6+ {[%clk 0:02:03]} 22. f3 {[%clk 0:02:13]}  Rxd1 {[%clk 0:02:03]} 23. Rbxd1 {[%clk 0:02:14]}  Nc4 {[%clk 0:01:46]} 24. Bf2 {[%clk 0:02:02]}  Qe6 {[%clk 0:01:38]} 25. Rd3 {[%clk 0:01:35]}  Ne5 {[%clk 0:01:35]} 26. Rd2 {[%clk 0:01:25]}  Nxf3 {[%clk 0:01:28]} 27. Nf4 {[%clk 0:00:52]}  Qc6 {[%clk 0:01:05]} 28. Ncd5 {[%clk 0:00:51]}  Nxd2 {[%clk 0:01:04]} 0-1


[Site "https://www.chess.com"]